bitfinex/quotes_ETHUSD_20240608
["timestamp","ask_amount","ask_price","bid_price","bid_amount"]
[1717821383227,0.723,3686.3,3686.0,0.44215377]
[1717821383542,0.39573466,3686.2,3686.0,0.44215377]
[1717821383913,0.92503761,3686.3,3686.0,0.44215377]
[1717821384102,0.39573466,3686.1,3686.0,0.44215377]
[1717821384294,0.92503761,3686.3,3686.0,0.44215377]
[1717821384490,0.39573466,3686.2,3686.0,0.44215377]
[1717821384739,0.92503761,3686.3,3686.0,0.44215377]
[1717821384895,0.39573466,3686.1,3686.0,0.44215377]
[1717821385095,0.92503761,3686.3,3686.0,0.44215377]
[1717821385298,0.39573466,3686.2,3686.0,0.44215377]
[1717821385596,0.92503761,3686.3,3686.0,0.44215377]
[1717821386095,0.39573466,3686.2,3686.0,0.44215377]
[1717821386295,0.92503761,3686.3,3686.0,0.44215377]
[1717821386494,0.39573466,3686.2,3686.0,0.44215377]
[1717821386738,0.92503761,3686.3,3686.0,0.44215377]
[1717821386943,0.39573466,3686.1,3686.0,0.44215377]
[1717821387242,0.92503761,3686.3,3686.0,0.44215377]
[1717821387444,0.39573466,3686.1,3685.8,2.71304]
[1717821387613,0.92503761,3686.3,3685.8,2.71304]
[1717821387814,0.39573466,3686.0,3685.8,2.71304]
[1717821388031,0.92503761,3686.3,3685.8,2.71304]
[1717821388506,0.39567819,3686.2,3685.8,2.71304]
[1717821388710,0.92503761,3686.3,3685.8,2.71304]
[1717821388909,0.39567819,3686.1,3685.8,2.71304]
[1717821389107,0.92503761,3686.3,3685.8,2.71304]
[1717821389336,0.39567819,3686.0,3685.8,2.71304]
[1717821389536,0.92503761,3686.3,3685.8,2.71304]
[1717821389755,0.39567819,3685.9,3685.8,2.71304]
[1717821389955,0.92503761,3686.3,3685.8,2.71304]
[1717821390247,0.39567819,3685.9,3685.8,2.71304]
[1717821390402,0.92503761,3686.3,3685.8,2.71304]
[1717821390604,0.39567819,3685.9,3685.8,2.71304]
[1717821391450,0.92503761,3686.3,3685.8,2.71304]
[1717821391650,0.39567819,3685.9,3685.8,2.71304]
[1717821392130,0.92503761,3686.3,3685.8,2.71304]
[1717821392331,0.39567819,3685.9,3685.8,2.71304]
[1717821392511,0.92503761,3686.3,3685.8,2.71304]
[1717821392852,0.39567819,3685.9,3685.8,2.71304]
[1717821393352,0.92503761,3686.3,3685.8,2.71304]
[1717821393564,0.39567819,3685.9,3685.8,2.71304]
[1717821393762,0.92503761,3686.3,3685.8,2.71304]
[1717821393934,0.39567819,3685.9,3685.8,2.71304]
[1717821394111,0.92503761,3686.3,3685.8,2.71304]
[1717821394314,0.39567819,3685.9,3685.8,2.71304]
[1717821394550,0.92503761,3686.3,3685.8,2.71304]
[1717821394729,0.39567819,3685.9,3685.8,2.71304]
[1717821394933,0.20203761,3686.3,3685.8,2.71304]
[1717821395128,0.39567819,3685.9,3685.8,2.71304]
[1717821395652,0.20203761,3686.3,3685.8,2.71304]
[1717821395852,0.39567819,3686.2,3685.8,2.71304]
[1717821396143,0.20203761,3686.3,3685.8,2.71304]
[1717821396369,0.39567819,3686.1,3685.8,2.71304]
[1717821396534,0.20203761,3686.3,3685.8,2.71304]
[1717821397223,0.39567819,3686.2,3685.8,2.71304]
[1717821397559,0.20203761,3686.3,3685.8,2.71304]
[1717821397766,0.39567819,3686.1,3685.8,2.71304]
[1717821398056,0.20203761,3686.3,3685.8,2.71304]
[1717821398639,0.39567819,3686.2,3685.8,2.71304]
[1717821398848,0.20203761,3686.3,3685.8,2.71304]
[1717821399146,0.39567819,3686.2,3685.8,2.71304]
[1717821399529,0.20203761,3686.3,3685.8,2.71304]
[1717821399729,0.39567256,3686.1,3685.8,2.71304]
[1717821399933,0.20203761,3686.3,3685.8,2.71304]
[1717821400176,0.39567256,3686.0,3685.8,2.71304]
[1717821400329,0.20203761,3686.3,3685.8,2.71304]
[1717821400536,0.39567256,3685.9,3685.8,2.71304]
[1717821401169,0.20203761,3686.3,3685.8,2.71304]
[1717821401361,0.39567256,3685.9,3685.8,2.71304]
[1717821401826,0.20203761,3686.3,3685.8,2.71304]
[1717821402244,0.39567256,3686.2,3685.8,2.71304]
[1717821402430,0.20203761,3686.3,3685.8,2.71304]
[1717821402667,0.39567256,3686.2,3685.8,2.71304]
[1717821403186,0.39567256,3686.1,3685.8,2.71304]
[1717821403530,0.20203761,3686.3,3685.8,2.71304]
[1717821403733,0.39567256,3686.0,3685.8,2.71304]
[1717821403933,0.20203761,3686.3,3685.8,2.71304]
[1717821404583,0.39567256,3686.2,3685.8,2.71304]
[1717821404936,0.20203761,3686.3,3685.8,2.71304]
[1717821405136,0.39567256,3686.1,3685.8,2.71304]
[1717821405370,0.20203761,3686.3,3685.8,2.71304]
[1717821405587,0.39567256,3686.0,3685.8,2.71304]
[1717821405890,0.39567256,3685.9,3685.8,2.71304]
[1717821406034,0.20203761,3686.3,3685.8,2.71304]
[1717821406262,0.39567256,3686.2,3685.8,2.71304]
[1717821406460,0.20203761,3686.3,3685.8,2.71304]
[1717821406677,0.39567256,3686.2,3685.8,2.71304]
[1717821406875,0.20203761,3686.3,3685.8,2.71304]
[1717821407098,0.39567256,3686.2,3685.8,2.71304]
[1717821407296,0.20203761,3686.3,3685.8,2.71304]
[1717821407505,0.39567256,3686.2,3685.8,2.71304]
[1717821407713,0.20203761,3686.3,3685.8,2.71304]
[1717821407914,0.39567256,3686.2,3685.8,2.71304]
[1717821408063,0.20203761,3686.3,3685.8,2.71304]
[1717821408414,0.39567256,3686.2,3685.8,2.71304]
[1717821408768,0.20203761,3686.3,3685.8,2.71304]
[1717821409260,0.39567256,3686.2,3685.8,2.71304]
[1717821409464,0.20203761,3686.3,3685.8,2.71304]
[1717821409656,0.39567256,3686.2,3685.8,2.71304]
[1717821409857,0.20203761,3686.3,3685.8,2.71304]
[1717821410061,0.39567256,3686.2,3685.8,2.71304]
[1717821410308,0.20203761,3686.3,3685.8,2.71304]
[1717821410604,0.39567256,3686.2,3685.8,2.71304]
[1717821410902,0.20203761,3686.3,3685.8,2.71304]
[1717821411210,0.39567256,3686.2,3685.8,2.71304]
[1717821411504,0.20203761,3686.3,3685.8,2.71304]
[1717821411666,0.39567256,3686.2,3685.8,2.71304]
[1717821411867,0.20203761,3686.3,3685.8,2.71304]
[1717821412213,0.39567256,3686.2,3685.8,2.71304]
[1717821412563,0.20203761,3686.3,3685.8,2.71304]
[1717821412763,0.39567256,3686.1,3685.8,2.71304]
[1717821413020,0.20203761,3686.3,3685.8,2.71304]
[1717821413222,0.39567256,3686.0,3685.8,2.71304]
[1717821413385,0.20203761,3686.3,3685.8,2.71304]
[1717821413583,0.39567256,3685.9,3685.8,2.71304]
[1717821413793,0.20203761,3686.3,3685.8,2.71304]
[1717821413988,0.39567256,3685.9,3685.8,2.71304]
[1717821414211,0.20203761,3686.3,3685.8,3.37205947]
[1717821414413,0.39567256,3685.9,3685.8,2.71304]
[1717821414571,0.20203761,3686.3,3685.8,2.71304]
[1717821414913,0.20203761,3686.3,3685.8,5.20094]
[1717821415064,0.39567256,3686.2,3685.8,5.20094]
[1717821415259,0.20203761,3686.3,3685.8,5.20094]
[1717821415518,0.39567256,3686.2,3685.8,5.20094]
[1717821415806,0.20203761,3686.3,3685.8,5.20094]
[1717821416008,0.39567256,3686.1,3685.8,5.20094]
[1717821416211,0.20203761,3686.3,3685.8,5.20094]
[1717821416382,0.39567256,3686.0,3685.8,5.20094]
[1717821416702,0.39561046,3685.9,3685.8,5.86031947]
[1717821416903,0.20203761,3686.3,3685.8,5.86031947]
[1717821417070,0.39561046,3686.2,3685.8,5.20094]
[1717821417269,0.20203761,3686.3,3685.8,5.20094]
[1717821417473,0.39561046,3686.2,3685.8,5.20094]
[1717821417697,0.20203761,3686.3,3685.8,5.20094]
[1717821417901,0.39566127,3686.2,3685.8,5.20094]
[1717821418072,0.20203761,3686.3,3685.8,5.20094]
[1717821418268,0.39566127,3686.2,3685.8,5.20094]
[1717821418468,0.20203761,3686.3,3685.8,5.20094]
[1717821418684,0.39566127,3686.2,3685.8,5.20094]
[1717821418885,0.20203761,3686.3,3685.8,5.20094]
[1717821419230,0.39566127,3686.2,3685.8,5.20094]
[1717821419527,0.20203761,3686.3,3685.8,5.20094]
[1717821419725,0.39566127,3686.2,3685.8,5.20094]
[1717821419881,0.20203761,3686.3,3685.8,5.20094]
[1717821420088,0.39566127,3686.2,3685.8,5.20094]
[1717821420325,0.20203761,3686.3,3685.8,5.20094]
[1717821420481,0.39566127,3686.1,3685.8,5.20094]
[1717821420678,0.20203761,3686.3,3685.8,5.20094]
[1717821420892,0.39567256,3686.2,3685.8,5.20094]
[1717821421100,0.20203761,3686.3,3685.8,5.20094]
[1717821421324,0.39567256,3686.2,3685.8,5.20094]
[1717821421528,0.20203761,3686.3,3685.8,5.20094]
[1717821421732,0.39567256,3686.2,3685.8,5.20094]
[1717821422030,0.20203761,3686.3,3685.8,5.20094]
[1717821422186,0.39567256,3686.1,3685.8,5.20094]
[1717821422386,0.20203761,3686.3,3685.8,5.20094]
[1717821422936,0.39577416,3686.2,3685.8,5.97428071]
[1717821423144,0.39577416,3686.2,3686.1,3.2038]
[1717821423282,0.20203761,3686.3,3686.2,2.71282]
[1717821423482,0.20203761,3686.3,3686.2,8.27608706]
[1717821424525,0.20203761,3686.3,3686.2,7.13647466]
[1717821424699,0.20203761,3686.3,3686.2,8.09185559]
[1717821425524,0.20203761,3686.3,3686.2,8.81485559]
[1717821426111,0.20203761,3686.3,3686.2,8.09185559]
[1717821426313,0.20203761,3686.3,3686.2,8.81485559]
[1717821428824,3.0,3687.4,3686.5,2.71256]
[1717821428825,5.3751,3687.4,3686.5,2.71256]
[1717821429033,0.723,3687.3,3686.6,0.519336]
[1717821429229,1.11937809,3687.3,3686.6,0.519336]
[1717821431536,1.11937809,3687.3,3686.7,2.4808]
[1717821431905,0.39637809,3687.3,3686.8,4.10522466]
[1717821432097,2.3751,3687.6,3686.8,4.10522466]
[1717821432293,0.38323455,3687.5,3686.8,4.83612713]
[1717821432516,0.38323455,3687.5,3686.8,5.55912713]
[1717821432727,2.3751,3687.7,3686.8,4.83612713]
[1717821432925,0.38323455,3687.6,3686.8,4.83612713]
[1717821433132,0.38323455,3687.6,3686.9,0.80399271]
[1717821433592,0.38323455,3687.6,3687.0,2.71222]
[1717821437524,1.10623455,3687.6,3687.0,2.71222]
[1717821441992,0.38323455,3687.6,3687.0,2.71222]
[1717821442157,0.38323455,3687.6,3687.1,2.3158]
[1717821442498,0.723,3687.7,3687.1,2.3158]
[1717821442641,0.38339819,3687.5,3687.1,2.3158]
[1717821442843,0.723,3687.7,3687.1,3.03828674]
[1717821443061,0.38339819,3687.4,3687.1,3.03828674]
[1717821443286,0.723,3687.7,3687.1,3.03828674]
[1717821443589,0.38339819,3687.6,3687.1,3.03828674]
[1717821449224,0.38339819,3687.6,3687.1,2.3158]
[1717821450624,2.4659,3687.8,3687.1,2.3158]
[1717821450801,0.38348845,3687.5,3687.1,2.3158]
[1717821451127,0.723,3687.7,3687.1,2.3158]
[1717821451275,0.38348845,3687.4,3687.1,2.3158]
[1717821451480,0.723,3687.7,3687.1,2.3158]
[1717821451984,0.38348845,3687.6,3687.1,2.3158]
[1717821458114,0.38348845,3687.6,3687.2,2.71205]
[1717821458553,0.723,3687.8,3687.2,2.71205]
[1717821458704,0.38348845,3687.5,3687.2,2.71205]
[1717821458906,0.723,3687.8,3687.2,2.71205]
[1717821459145,0.38348845,3687.4,3687.2,2.71205]
[1717821459344,0.723,3687.8,3687.2,2.71205]
[1717821459520,0.38348845,3687.3,3687.2,2.71205]
[1717821459719,0.723,3687.8,3687.2,3.214835]
[1717821459915,0.723,3687.8,3687.2,2.71205]
[1717821460349,0.38348845,3687.7,3687.2,2.71205]
[1717821460721,1.10648845,3687.7,3687.2,2.71205]
[1717821460934,0.723,3687.7,3687.2,2.71205]
[1717821461110,0.38348845,3687.6,3687.2,2.71205]
[1717821478043,0.723,3687.5,3686.9,2.4138]
[1717821478243,0.723,3687.3,3686.8,2.71234]
[1717821478447,0.723,3687.3,3686.6,2.4138]
[1717821478679,0.38376495,3687.2,3686.6,2.4138]
[1717821480613,0.723,3687.1,3686.6,2.4138]
[1717821480762,1.10661825,3687.1,3686.6,2.4138]
[1717821481999,0.38361825,3687.1,3686.6,2.4138]
[1717821482198,1.10661825,3687.1,3686.6,2.4138]
[1717821482513,0.38361825,3687.0,3686.6,2.4138]
[1717821493782,0.723,3687.3,3686.6,2.4138]
[1717821493986,0.38363518,3686.9,3686.6,2.4138]
[1717821494187,0.723,3687.3,3686.6,2.926444]
[1717821494482,0.38363518,3686.8,3686.4,2.71264]
[1717821494682,0.723,3687.1,3686.4,4.10549466]
[1717821494883,0.38363518,3686.7,3686.4,4.10549466]
[1717821495117,0.723,3687.1,3686.4,4.10549466]
[1717821495318,0.38363518,3686.6,3686.4,4.10549466]
[1717821495636,0.723,3687.1,3686.5,0.65192947]
[1717821495927,0.723,3687.1,3686.4,4.10549466]
[1717821500028,2.3969,3687.2,3686.4,4.10549466]
[1717821503398,0.38372545,3687.1,3686.4,4.10549466]
[1717821506148,1.10672545,3687.1,3686.4,4.10549466]
[1717821514237,1.10672545,3687.1,3686.4,2.71264]
[1717821514446,0.723,3686.9,3686.4,2.71264]
[1717821514771,0.38373675,3686.8,3686.4,2.71264]
[1717821515358,0.723,3686.7,3686.0,5.01514]
[1717821515529,0.92842478,3686.7,3686.0,5.01514]
[1717821515963,0.38369161,3686.6,3686.0,5.01514]
[1717821516164,0.38369161,3686.6,3686.0,6.44591524]
[1717821517465,0.38369161,3686.6,3686.0,5.01514]
[1717821530062,0.38369161,3686.6,3686.0,2.71294]
[1717821544324,0.38369161,3686.6,3686.2,2.71278]
[1717821546147,0.38369161,3686.6,3686.4,2.71267]
[1717821549605,0.20542478,3686.7,3686.4,2.71267]
[1717821549823,0.20542478,3686.7,3686.6,2.71252]
[1717821550404,0.20542478,3686.7,3686.6,4.97232]
[1717821551222,5.412,3687.4,3686.6,4.97232]
[1717821551434,2.412,3687.4,3686.6,4.97232]
[1717821551748,0.38385523,3687.3,3686.6,4.97232]
[1717821555153,1.10685523,3687.3,3686.6,2.71252]
[1717821555355,2.63366268,3687.0,3686.6,2.71252]
[1717821555653,0.38409215,3686.9,3686.6,2.71252]
[1717821558818,0.38409215,3686.9,3686.6,5.78722]
[1717821559054,0.22166268,3687.0,3686.6,5.06422]
[1717821559258,0.38370854,3686.9,3686.6,5.06422]
[1717821559470,0.38370854,3686.9,3686.8,2.71237]
[1717821582215,4.30932835,3687.6,3686.8,2.71237]
[1717821582425,0.38375367,3686.9,3686.8,2.71237]
[1717821582977,4.30932835,3687.6,3686.8,2.71237]
[1717821583147,0.38375367,3686.9,3686.8,2.71237]
[1717821583348,4.30932835,3687.6,3686.8,2.71237]
[1717821583546,0.38375367,3686.9,3686.8,2.71237]
[1717821583880,4.30932835,3687.6,3686.8,3.291077]
[1717821584040,4.30932835,3687.6,3686.8,2.71237]
[1717821584240,0.38375367,3687.5,3686.8,2.71237]
[1717821584975,1.10675367,3687.5,3686.8,2.71237]
[1717821585187,0.38375367,3687.5,3686.8,2.71237]
[1717821586078,0.38375367,3687.5,3687.0,2.71221]
[1717821595942,0.38375367,3687.5,3686.5,3.43555]
[1717821596252,0.723,3687.3,3686.5,5.11925]
[1717821596611,0.38378187,3687.2,3686.5,5.11925]
[1717821596943,0.38378187,3687.2,3686.5,5.74513624]
[1717821602289,0.38378187,3687.2,3686.9,2.4615]
[1717821602489,0.38378187,3687.2,3687.0,2.71223]
[1717821602696,2.4124,3687.7,3687.0,2.71223]
[1717821603200,0.38355054,3687.6,3687.0,2.71223]
[1717821608595,0.38355054,3687.6,3687.0,3.301903]
[1717821608767,3.1354,3687.9,3687.0,3.301903]
[1717821608967,0.38370851,3687.5,3687.0,3.301903]
[1717821609150,3.1354,3687.9,3687.0,3.301903]
[1717821609364,0.38371418,3687.4,3687.0,2.71223]
[1717821609578,3.1354,3687.9,3687.0,2.71223]
[1717821609791,0.38371418,3687.3,3687.0,2.71223]
[1717821609999,1.30928,3688.0,3687.3,2.4615]
[1717821610153,4.30928,3688.0,3687.3,2.4615]
[1717821610498,3.723,3688.0,3687.3,2.4615]
[1717821611054,3.723,3688.0,3687.4,2.71191]
[1717821611255,4.30921635,3688.0,3687.4,2.71191]
[1717821611488,3.58621635,3688.0,3687.4,2.71191]
[1717821611697,0.723,3687.9,3687.4,2.71191]
[1717821614392,0.723,3687.9,3687.4,3.36853647]
[1717821620374,2.3237,3688.4,3687.4,3.36853647]
[1717821620586,0.723,3688.1,3687.4,3.36853647]
[1717821622669,3.58622176,3688.3,3687.4,3.36853647]
[1717821622917,0.723,3688.1,3687.4,3.36853647]
[1717821623124,0.723,3688.1,3687.5,0.58300365]
[1717821623312,0.723,3688.1,3687.6,2.3229]
[1717821623475,0.38383828,3688.0,3687.6,2.3229]
[1717821628933,0.38383828,3688.0,3687.7,2.7117]
[1717821629282,2.70696599,3688.6,3687.7,2.7117]
[1717821629283,0.723,3688.4,3687.7,2.7117]
[1717821629482,0.723,3688.4,3687.9,2.71152]
[1717821630411,0.21776599,3688.6,3688.1,2.7114]
[1717821638427,0.4124442,3688.5,3688.1,2.7114]
[1717821640133,0.4124442,3688.5,3688.2,2.3446]
[1717821640460,0.4124442,3688.5,3688.3,0.5056]
[1717821642318,0.4124442,3688.5,3688.4,2.7112]
[1717821647461,0.4124442,3688.5,3687.9,2.71152]
[1717821648340,0.723,3688.2,3687.9,2.71152]
[1717821648668,0.41246676,3688.1,3687.9,2.71152]
[1717821652416,2.74476676,3688.1,3687.9,2.71152]
[1717821654292,2.74476676,3688.1,3687.5,3.29483365]
[1717821654592,2.74476676,3688.1,3687.6,1.07248337]
[1717821657985,2.74476676,3688.1,3687.5,3.29483365]
[1717821658189,0.723,3688.0,3687.5,3.29483365]
[1717821658558,0.41211108,3687.9,3687.5,3.29483365]
[1717821659153,3.0275,3687.8,3687.5,2.71183]
[1717821659558,0.41207162,3687.7,3687.5,2.71183]
[1717821660062,0.41207162,3687.6,3687.5,2.71183]
[1717821660297,3.0275,3687.8,3687.5,2.71183]
[1717821660510,0.41207162,3687.6,3687.5,2.71183]
[1717821660659,0.41207162,3687.6,3687.1,2.71214]
[1717821660660,0.723,3687.6,3687.1,2.71214]
[1717821660861,0.41207162,3687.5,3687.1,2.71214]
[1717821661205,0.41207162,3687.5,3687.1,3.956844]
[1717821661779,0.723,3687.6,3687.1,3.956844]
[1717821663793,0.723,3687.6,3687.1,2.71214]
[1717821664517,3.0275,3687.8,3687.1,2.71214]
[1717821665014,0.41160341,3687.7,3687.1,2.71214]
[1717821675415,0.41160341,3687.7,3687.3,2.71197]
[1717821675744,3.723,3688.2,3687.3,2.71197]
[1717821676217,0.41180649,3688.1,3687.3,3.42347247]
[1717821678845,0.723,3688.0,3687.3,3.42347247]
[1717821679048,0.41184599,3687.9,3687.3,3.42347247]
[1717821686046,3.52194599,3687.9,3687.3,2.71197]
[1717821686485,2.79894599,3687.9,3687.3,2.71197]
[1717821691514,0.41184599,3687.9,3687.3,4.97737]
[1717821694306,0.41184599,3687.9,3687.3,5.475107]
[1717821697720,0.723,3688.0,3687.3,5.475107]
[1717821698215,0.41177829,3687.9,3687.3,5.475107]
[1717821701021,3.58619893,3688.3,3687.3,5.475107]
[1717821701022,0.723,3688.1,3687.3,5.475107]
[1717821701230,0.63719644,3687.8,3687.3,5.475107]
[1717821701396,0.22541815,3687.8,3687.4,0.5475107]
[1717821701600,0.41177829,3687.7,3687.4,0.5475107]
[1717821702029,0.22541815,3687.8,3687.4,0.5475107]
[1717821702230,0.41177829,3687.6,3687.4,0.5475107]
[1717821702389,0.22541815,3687.8,3687.5,0.55248807]
[1717821702590,0.22541815,3687.8,3687.6,2.4792]
[1717821702902,0.41181212,3687.7,3687.6,2.4792]
[1717821703081,0.22541815,3687.8,3687.6,2.4792]
[1717821703287,0.22541815,3687.8,3687.7,0.30316881]
[1717821709244,0.22541815,3687.8,3687.6,2.4792]
[1717821712724,0.22541815,3687.8,3687.5,0.55248807]
[1717821713443,0.41174445,3687.7,3687.5,0.55248807]
[1717821713630,0.22541815,3687.8,3687.5,0.55248807]
[1717821713829,0.41174445,3687.7,3687.5,0.55248807]
[1717821714011,0.22541815,3687.8,3687.5,0.55248807]
[1717821714415,0.41174445,3687.7,3687.5,0.55248807]
[1717821714616,0.22541815,3687.8,3687.5,0.55248807]
[1717821714827,0.41174445,3687.7,3687.5,0.55248807]
[1717821715037,0.22541815,3687.8,3687.5,0.55248807]
[1717821715361,0.41174445,3687.7,3687.5,0.55248807]
[1717821715861,0.41174445,3687.6,3687.5,0.55248807]
[1717821716023,0.22541815,3687.8,3687.5,0.55248807]
[1717821716224,0.41174445,3687.7,3687.5,0.55248807]
[1717821716423,0.22541815,3687.8,3687.5,0.55248807]
[1717821716868,0.41174445,3687.7,3687.5,0.55248807]
[1717821717070,0.22541815,3687.8,3687.5,0.55248807]
[1717821717372,0.41174445,3687.7,3687.5,0.55248807]
[1717821717659,0.22541815,3687.8,3687.5,0.55248807]
[1717821717863,0.41174445,3687.7,3687.4,2.4792]
[1717821718067,0.22541815,3687.8,3687.4,2.4792]
[1717821718214,0.41174445,3687.7,3687.4,2.4792]
[1717821718415,0.22541815,3687.8,3687.4,2.4792]
[1717821718619,0.41171622,3687.7,3687.4,2.4792]
[1717821718821,0.22541815,3687.8,3687.4,2.4792]
[1717821719057,0.41171622,3687.7,3687.4,2.4792]
[1717821719267,0.22541815,3687.8,3687.4,2.4792]
[1717821719476,0.41171622,3687.7,3687.4,2.4792]
[1717821719765,0.22541815,3687.8,3687.4,2.4792]
[1717821719976,0.41171622,3687.6,3687.4,2.4792]
[1717821720189,0.22541815,3687.8,3687.5,0.519117]
[1717821722398,0.22541815,3687.8,3687.3,2.71197]
[1717821722682,2.329,3687.7,3687.3,2.71197]
[1717821728284,0.41171622,3687.6,3687.3,2.71197]
[1717821775077,2.3815,3687.5,3687.3,2.71197]
[1717821775374,2.79319932,3687.5,3687.3,2.71197]
[1717821776881,2.79319932,3687.5,3686.9,2.71227]
[1717821777036,2.79319932,3687.5,3686.9,3.47583756]
[1717821791804,3.51619932,3687.5,3686.9,2.71227]
[1717821792003,2.4153,3687.4,3686.9,2.71227]
[1717821792167,0.723,3687.3,3686.9,2.71227]
[1717821792368,2.4153,3687.2,3686.9,2.71227]
[1717821792691,0.41156391,3687.1,3686.9,2.71227]
[1717821792879,3.1383,3687.0,3686.5,3.8521824]
[1717821793076,3.1383,3687.0,3686.5,2.71257]
[1717821793272,3.45213,3687.0,3686.5,2.71257]
[1717821793475,0.41138898,3686.9,3686.5,2.71257]
[1717821827077,0.41138898,3686.9,3686.5,5.13657]
[1717821827431,0.21309081,3687.1,3686.5,5.13657]
[1717821827647,0.39773709,3687.0,3686.5,5.13657]
[1717821827874,0.39773709,3687.0,3686.7,2.71243]
[1717821855400,2.2681,3686.9,3686.7,2.71243]
[1717821855602,0.39774276,3686.8,3686.7,2.71243]
[1717821864329,0.21309081,3687.1,3686.7,2.71243]
[1717821864510,0.39766326,3686.8,3686.7,2.71243]
[1717821864711,0.21309081,3687.1,3686.7,3.225383]
[1717821864931,0.39766326,3686.8,3686.7,2.71243]
[1717821865135,0.21309081,3687.1,3686.7,2.71243]
[1717821865330,0.39766326,3686.8,3686.7,2.71243]
[1717821865612,0.39766326,3686.8,3686.7,5.12953]
[1717821865809,0.21309081,3687.1,3686.7,5.12953]
[1717821866119,0.39766326,3687.0,3686.7,5.12953]
[1717821871246,0.39766326,3687.0,3686.7,5.75644424]
[1717821884271,0.39766326,3687.0,3686.7,5.12953]
[1717821890064,0.39781089,3686.9,3686.7,5.12953]
[1717821890261,0.20659139,3687.1,3686.7,5.12953]
[1717821890564,0.39781089,3687.0,3686.7,5.12953]
[1717821893460,2.4399,3687.4,3686.7,5.12953]
[1717821893667,1.07266454,3687.3,3686.7,5.12953]
[1717821897288,0.39774276,3687.3,3686.7,5.12953]
[1717821902184,0.723,3687.5,3686.7,5.12953]
[1717821902340,0.39774276,3687.2,3686.8,1.39285466]
[1717821902541,0.58631782,3687.6,3687.1,2.71209]
[1717821902748,1.30931782,3687.9,3687.2,0.515519]
[1717821902963,0.39774276,3687.5,3687.1,2.71209]
[1717821903264,0.21980511,3687.5,3687.1,2.71209]
[1717821905165,0.21980511,3687.5,3687.1,4.10494466]
[1717821905469,0.21980511,3687.5,3687.3,2.71201]
[1717821905843,0.39827088,3687.4,3687.3,2.71201]
[1717821906094,0.21980511,3687.5,3687.3,2.71201]
[1717821906675,0.39827088,3687.4,3687.3,2.71201]
[1717821907293,0.21980511,3687.5,3687.3,2.71201]
[1717821907468,0.21980511,3687.5,3687.3,3.41508591]
[1717821907661,0.39834468,3687.4,3687.3,3.41508591]
[1717821908190,0.21980511,3687.5,3687.3,3.41508591]
[1717821908394,0.39834468,3687.4,3687.3,3.41508591]
[1717821908599,0.21980511,3687.5,3687.3,3.41508591]
[1717821908922,0.21980511,3687.5,3687.4,0.7733835]
[1717821923391,0.61808733,3687.5,3687.4,0.7733835]
[1717821925327,0.61808733,3687.5,3687.3,2.71201]
[1717821925525,0.61808733,3687.5,3687.3,4.10486466]
[1717821925728,0.61808733,3687.5,3687.3,2.71201]
[1717821926338,3.11078733,3687.5,3687.3,2.71201]
[1717821936085,3.11078733,3687.5,3687.3,2.71201]
[1717821940381,3.83378733,3687.5,3687.3,2.71201]
[1717821961648,3.83378733,3687.5,3686.9,2.71228]
[1717821961871,3.43550511,3687.5,3687.0,0.271228]
[1717821962039,0.39780524,3687.4,3687.0,0.271228]
[1717821963431,0.39780524,3687.4,3686.9,2.71228]
[1717821963675,0.723,3687.2,3686.9,2.71228]
[1717821964089,0.39778821,3687.1,3686.9,2.71228]
[1717821967302,0.39778821,3687.1,3686.3,1.1396124]
[1717821967303,2.73178821,3687.1,3686.4,2.71264]
[1717821967618,0.39778821,3687.1,3686.4,2.71264]
[1717821967801,0.39778821,3687.1,3686.5,2.4406]
[1717821976245,0.39778821,3687.1,3686.4,2.71264]
[1717821976443,0.39778821,3687.1,3686.4,3.44708212]
[1717821984083,0.39778821,3687.1,3686.7,2.71239]
[1717821984280,2.70260511,3687.5,3687.0,2.71217]
[1717821984482,0.21980511,3687.5,3687.0,2.71217]
[1717821984696,0.21980511,3687.5,3687.0,3.36699247]
[1717821998206,0.39810051,3687.4,3687.0,3.36699247]
[1717822007632,0.39810051,3687.4,3687.0,4.75984713]
[1717822007845,0.39810051,3687.4,3687.2,2.71208]
[1717822015470,0.21980511,3687.5,3687.2,2.71208]
[1717822015670,0.21980511,3687.5,3687.0,2.04767713]
[1717822015671,0.21980511,3687.5,3687.4,2.71193]
[1717822015831,0.61799649,3687.5,3687.4,2.71193]
[1717822016028,0.21980511,3687.5,3687.4,2.71193]
[1717822016236,0.61799649,3687.5,3687.4,2.71193]
[1717822024863,0.39819138,3687.5,3687.4,2.71193]
[1717822025099,2.3298,3687.9,3687.4,3.26063057]
[1717822025298,0.39812325,3687.8,3687.4,2.71193]
[1717822026761,0.723,3688.1,3687.4,2.71193]
[1717822026965,0.39812325,3687.7,3687.4,2.71193]
[1717822027272,0.39812325,3687.6,3687.4,2.71193]
[1717822027502,0.2191965,3687.7,3687.5,0.31879057]
[1717822027729,0.39812325,3687.6,3687.5,0.31879057]
[1717822032129,0.39812325,3687.6,3687.5,2.43464523]
[1717822032333,2.4817,3688.6,3687.8,2.71162]
[1717822032465,2.4817,3688.6,3688.1,2.71141]
[1717822032669,1.12120272,3688.5,3688.1,2.71141]
[1717822038112,0.723,3688.3,3688.1,2.71141]
[1717822038299,3.36594722,3688.3,3688.1,2.71141]
[1717822038502,0.39835602,3688.2,3688.1,2.71141]
[1717822038708,2.64294722,3688.3,3688.1,2.71141]
[1717822039018,0.39835602,3688.2,3688.1,2.71141]
[1717822039824,2.64294722,3688.3,3688.1,2.71141]
[1717822040040,0.39835602,3688.2,3688.1,2.71141]
[1717822040638,2.64294722,3688.3,3688.1,2.71141]
[1717822040839,0.39835602,3688.2,3688.1,2.71141]
[1717822041126,2.64294722,3688.3,3688.1,2.71141]
[1717822041284,0.39835602,3688.2,3688.1,2.71141]
[1717822041487,2.64294722,3688.3,3688.1,2.71141]
[1717822041686,0.39835602,3688.2,3688.1,2.71141]
[1717822041927,2.64294722,3688.3,3688.1,2.71141]
[1717822042223,0.39839008,3688.2,3688.1,2.71141]
[1717822042524,2.64294722,3688.3,3688.1,2.71141]
[1717822042691,0.39839008,3688.2,3688.1,2.71141]
[1717822042891,2.64294722,3688.3,3688.1,2.71141]
[1717822043104,0.39839008,3688.2,3688.1,2.71141]
[1717822043306,2.64294722,3688.3,3688.1,2.71141]